Workbook

Sheet DRESSAGE
A1: CHAMPIONNAT DE FRANCE SPORT ADAPTE EQUITATION
A2: 19 et 20 JUIN 2014 - LES RENES DE LA VIE - SAINT LO
A3: DRESSAGE - DIVISION 3 JEUNES
B6: Nombre de partants : | C6: =COUNTA(B68:B97) -> 7
A7: Dossard | B7: Cavalier | C7: Cheval | D7: Association | E7: Juge 1 | F7: Pénal. | G7: Juge 2 | H7: Pénal. | I7: TOTAL | J7: Classement
A8: 1 | B8: GRAMONT Florian | C8: TIC | D8: APEI Centre Manche IME La Fresnelière | E8: 123 | G8: 124 | I8: =(E8-F8+G8-H8)/2 -> 123.5
A9: 2 | B9: COTENTIN Pierre-Louis | C9: INDIENNE | D9: APEI Centre Manche IME La Fresnelière | E9: 126 | G9: 118 | I9: 122
A10: 3 | B10: LEBACHELEY Emilia | C10: POLY | D10: APEI Centre Manche IME La Fresnelière | E10: 122 | G10: 121 | I10: 121.5
A11: 4 | B11: DUFOUR Robert | C11: NOKER | D11: APEI Centre Manche IME La Fresnelière | E11: 120 | G11: 127 | I11: 123.5
A12: 5 | B12: FOURNIER Samantha | C12: OPERA | D12: APEI Centre Manche IME La Fresnelière | E12: 129 | G12: 137 | I12: 133
A13: 6 | B13: GAILDRAT Félix | C13: PERSO PAL | D13: Le pied à l'étrier | E13: 114 | G13: 111 | H13: 1 | I13: 112
A14: 7 | B14: HARLEY Joyan | C14: PERSO PAL | D14: Le pied à l'étrier | E14: 120 | G14: 116 | I14: 118
A15: 8 | B15: HAZI Samy | C15: PERSO PAL | D15: Le pied à l'étrier | E15: 130 | G15: 129 | I15: 129.5
A16: 9 | B16: POWER Wayne | C16: PERSO PAL | D16: Le pied à l'étrier | E16: 113 | F16: 2 | G16: 117 | H16: 4 | I16: 112
A17: 10 | B17: DIDIER Jérémie | C17: OSIRIS | D17: EYBENS Sport adapté | E17: 88 | F17: 2 | G17: 86 | H17: 3 | I17: 84.5
A18: 11 | B18: ESTEVES Manuel | C18: PERSO TILLEUILS | D18: Centre Equestre des Tilleuls | E18: 113 | G18: 118 | I18: 115.5
A19: 12 | B19: DIAWARA Kalilou | C19: PERSO TILLEUILS | D19: Centre Equestre des Tilleuls | E19: 122 | G19: 117 | I19: 119.5
A20: 13 | B20: FERRARY Aurore | C20: PERSO TILLEUILS | D20: Centre Equestre des Tilleuls | E20: 91 | F20: 5 | G20: 97 | H20: 4 | I20: 89.5
A21: 14 | B21: BANANI Jad | C21: PERSO TILLEUILS | D21: Centre Equestre des Tilleuls | E21: 117 | G21: 110 | I21: 113.5
A22: 15 | B22: PETIT FLEURY Emilie | C22: PERSO TILLEUILS | D22: Centre Equestre des Tilleuls | E22: 92 | F22: 6 | G22: 88 | I22: 87
A23: 16 | B23: BILLERES Jessica | C23: PERSO TILLEUILS | D23: Centre Equestre des Tilleuls | E23: 129 | G23: 131 | I23: 130
A24: 17 | B24: MONNIER Nicolas | C24: NO NAME | D24: ASAL 39 | E24: 122 | G24: 124 | I24: 123
A25: 18 | B25: MAHAMDI Nassim | C25: NO NAME | D25: ASAL 39 | E25: 115 | G25: 125 | I25: 120
A26: 19 | B26: VARIN Fanny | C26: INDIENNE | D26: Les rênes de la vie (SAISMO 21) | E26: 111 | G26: 120 | H26: 1 | I26: 115
A27: 20 | B27: Brisset Lambert | C27: TIC | D27: Les rênes de la vie (SAISMO 21) | E27: 115 | G27: 112 | H27: 2 | I27: 112.5
A28: 21 | B28: BENADJI Nabil | C28: NENUPHAR | D28: Coppe Atout Sport | E28: 120 | G28: 122 | H28: 2 | I28: 120
A29: 22 | B29: BOSCHE Nicolas | C29: QUETZAL | D29: Coppe Atout Sport | E29: 102 | G29: 93 | H29: 6 | I29: 94.5
A30: 23 | B30: BONTE Charlotte | C30: NENUPHAR | D30: Coppe Atout Sport | E30: 113 | F30: 2 | G30: 118 | I30: 114.5
A31: 24 | B31: DUPORTAIL Emeline | C31: QUETZAL | D31: Coppe Atout Sport | E31: 110 | G31: 111 | I31: 110.5
A32: 25 | B32: DUPORT Sébastien | C32: KERIS | D32: Coppe Atout Sport | E32: 102 | G32: 73 | H32: 22 | I32: 76.5
A33: 26 | B33: POUCHELE Ophélie | C33: MULTAN | D33: Coppe Atout Sport | E33: 110 | G33: 122 | I33: 116
A34: 27 | B34: STAESSEN Cédric | C34: OSIRIS | D34: Coppe Atout Sport | E34: 124 | G34: 121 | I34: 122.5
A35: 28 | B35: CARNEY Amandine | C35: MULTAN | D35: Coppe Atout Sport | E35: 96 | F35: 1 | G35: 103 | I35: 99
A36: 29 | B36: NOYELLE Guillaume | C36: MULTAN | D36: Coppe Atout Sport | E36: 108 | G36: 121 | I36: 114.5
A37: 30 | B37: VANBLEU Jérémy | C37: NENUPHAR | D37: Coppe Atout Sport | E37: 122 | G37: 122 | I37: 122
A38: 31 | B38: VIDEAU Appoline | C38: NO NAME | D38: Les rênes de la vie (Les Pieux) | E38: 92 | F38: 4 | G38: 90 | H38: 4 | I38: 87
A39: 32 | B39: GARNIER Gwendoline | C39: KERIS | D39: Association Sportive IME de Quimperlé | E39: 105 | F39: 1 | G39: 107 | I39: 105.5
A40: 33 | B40: RIVALLAIN Irène | C40: KERIS | D40: Association Sportive IME de Quimperlé | E40: 114 | G40: 122 | I40: =(E40-F40+G40-H40)/2 -> 118
A41: 34 | B41: FOLLIOT Sandy | C41: IROINE | D41: APEI Centre Manche SESSAD | E41: 126 | G41: 128 | I41: 127
A42: 35 | B42: DUVAL Jérémy | C42: JIMBA | D42: APEI Centre Manche SESSAD | E42: 104 | G42: 113 | I42: 108.5
A43: 36 | B43: MABIRE Léo | C43: JIMBA | D43: APEI Centre Manche SESSAD | E43: 123 | G43: 121 | I43: 122
A44: 37 | B44: BIREE Nicolas | C44: TIC | D44: APEI Centre Manche SESSAD | E44: 122 | G44: 123 | I44: 122.5
A45: 38 | B45: ROGER Lucas | C45: POLY | D45: APEI Centre Manche SESSAD | E45: 115 | G45: 127 | I45: 121
A46: 39 | B46: DUBOURGUAIS Dylan | C46: TIC | D46: APEI Centre Manche SESSAD | E46: 126 | G46: 122 | I46: 124
A47: 40 | B47: METAIRIE Manon | C47: POLY | D47: APEI Centre Manche IME Maurice Marie | E47: 100 | G47: 118 | I47: 109
A48: 41 | B48: DESFONTAINES Kelly | C48: POLY | D48: APEI Centre Manche IME Maurice Marie | E48: 101 | G48: 113 | I48: 107
A49: 42 | B49: FLEUNY Louis | C49: OPERA | D49: APEI Centre Manche IME Maurice Marie | E49: 120 | G49: 112 | I49: 116
A50: 43 | B50: SUZANNE Rémi | C50: NOKER | D50: APEI Centre Manche IME Maurice Marie | E50: 113 | G50: 117 | I50: 115
A51: 44 | B51: PLEY Jean-Claude | C51: NOKER | D51: APEI Centre Manche IME Maurice Marie | E51: 107 | G51: 112 | I51: 109.5
A52: 45 | B52: BOCHKOVITCH Maud | C52: LOOPING | D52: Tropagalo | E52: 123 | G52: 114 | I52: 118.5
A53: 46 | B53: SOLER Mathilde | C53: NOISETTE | D53: Tropagalo | E53: 109 | G53: 117 | I53: 113
A54: 47 | B54: OLIVIER Alexandre | C54: OSIRIS | D54: Tropagalo | E54: 96 | F54: 1 | G54: 115 | I54: 105
A55: 48 | B55: NONCHE Nicolas | C55: MULTAN | D55: GISORS SPORT | I55: 0 | J55: NP
A56: 49 | B56: MAYEUR Loïc | C56: JIMY | D56: GISORS SPORT | E56: 118 | G56: 126 | I56: 122
A57: 50 | B57: STRADY Ryan | C57: OSIRIS | D57: GISORS SPORT | E57: 123 | G57: 121 | I57: 122
A58: 51 | B58: HORTH Olivier | C58: PIKACHU | D58: GISORS SPORT | E58: 110 | G58: 122 | I58: 116
A59: 52 | B59: GACHTOURI Shakira | C59: NOISETTE | D59: GISORS SPORT | E59: 95 | G59: 95 | H59: 2 | I59: 94
A60: 53 | B60: VERMANDE Matteo | C60: NOISETTE | D60: GISORS SPORT | E60: 96 | F60: 3 | G60: 99 | I60: 96
A61: 54 | B61: SELBONNE Tymothé | C61: PIKACHU | D61: GISORS SPORT | E61: 130 | G61: 114 | I61: 122
A62: 55 | B62: BUCAILLE Emmanuella | C62: LOOPING | D62: APEI Centre Manche | E62: 106 | F62: 2 | G62: 103 | H62: 5 | I62: 101
A63: 56 | B63: LEGUEURLIER Guillaume | C63: MULTAN | D63: APEI Centre Manche | E63: 83 | F63: 4 | G63: 82 | H63: 2 | I63: 79.5
A64: 57 | B64: AMIOT Emilie | C64: HUGO | D64: APEI Centre Manche | E64: 111 | G64: 116 | I64: 113.5
A65: 58 | B65: BIENFAIT Alexandre | C65: LOOPING | D65: Les rênes de la vie (ITEP) | E65: 124 | G65: 117 | I65: 120.5
A66: 59 | B66: HUMBERT Antonin | C66: NOISETTE | D66: Les rênes de la vie (ITEP) | E66: 113 | G66: 116 | I66: 114.5
A67: 60 | B67: FREMONT Louis | C67: NOISETTE | D67: Les rênes de la vie (ITEP) | E67: 107 | F67: 2 | G67: 116 | I67: 110.5
A68: 61 | B68: KELLERN Enzo | C68: LOOPING | D68: Les rênes de la vie (ITEP) | E68: 107 | G68: 111 | I68: 109
A69: 62 | B69: DEBRIL Sofian | C69: KERIS | D69: Adapt EQUIFUN | E69: 115 | G69: 126 | I69: 120.5
A70: 63 | B70: BONTE Tom | C70: JIMY | D70: Adapt EQUIFUN | E70: 122 | G70: 127 | I70: 124.5
A71: 64 | B71: SANTERRE Yohann | C71: FLAMENCO | D71: Adapt EQUIFUN | E71: 118 | G71: 116 | I71: 117
A72: 65 | B72: GALETTI Manon | C72: KERIS | D72: Adapt EQUIFUN | E72: 118 | G72: 123 | I72: =(E72-F72+G72-H72)/2 -> 120.5
A73: 66 | B73: NEUQUELMAN Laurianne | C73: OSIRIS | D73: Adapt EQUIFUN | E73: 127 | G73: 122 | I73: 124.5
A74: 67 | B74: GIVAUDAN Jason | C74: OSIRIS | D74: Adapt EQUIFUN | E74: 121 | G74: 119 | I74: 120
I75: 0
I76: 0
I77: 0
I78: 0
I79: 0
I80: 0
I81: 0
I82: 0
I83: 0
I84: 0
I85: 0
I86: 0
I87: 0
I88: 0
I89: 0
I90: 0
I91: 0
I92: 0
I93: 0
I94: 0
I95: 0
I96: 0
I97: 0

Sheet CSO
A1: CHAMPIONNAT DE FRANCE SPORT ADAPTE EQUITATION
A2: 19 et 20 JUIN 2014 - LES RENES DE LA VIE - SAINT LO
A3: CSO - DIVISION 3 JEUNES
B6: Nombre de partants : | C6: =COUNTA(C8:C40) -> 0
A7: Dossard | B7: Cavalier | C7: Cheval | D7: Association | E7: Pénalités piste | F7: Note style | G7: TOTAL | H7: Classement
G8: =F8-E8 -> 0
G9: 0
G10: 0
G11: 0
G12: 0
G13: 0
G14: 0
G15: 0
G16: 0
G17: 0
G18: 0
G19: 0
G20: 0
G21: 0
G22: 0
G23: 0
G24: 0
G25: 0
G26: 0
G27: 0
G28: 0
G29: 0
G30: 0
G31: 0
G32: 0
G33: 0
G34: 0
G35: 0
G36: 0
G37: 0
G38: 0
G39: 0
G40: 0

Sheet CROSS
A1: CHAMPIONNAT DE FRANCE SPORT ADAPTE EQUITATION
A2: 19 et 20 JUIN 2014 - LES RENES DE LA VIE - SAINT LO
A3: CROSS - DIVISION 3 JEUNES
B6: Nombre de partants : | C6: =COUNTA(C8:C40) -> 0 | E6: Tps maxi : | F6: 83
A7: Dossard | B7: Cavalier | C7: Cheval | D7: Association | E7: Pénalités cross | F7: Temps cross | G7: Pénalités Tps | H7: Total Pénalités | I7: Note style | J7: TOTAL | K7: Classement
G8: =IF(($F$6-F8)>15,10,IF(($F$6-F8)<0,($F$6-F8)*-0.5,0)) -> 10 | H8: =E8+G8 -> 10 | J8: =I8-H8 -> -10
G9: 10 | H9: 10 | J9: -10
G10: 10 | H10: 10 | J10: -10
G11: 10 | H11: 10 | J11: -10
G12: 10 | H12: 10 | J12: -10
G13: 10 | H13: 10 | J13: -10
G14: 10 | H14: 10 | J14: -10
G15: 10 | H15: 10 | J15: -10
G16: 10 | H16: 10 | J16: -10
G17: 10 | H17: 10 | J17: -10
G18: 10 | H18: 10 | J18: -10
G19: 10 | H19: 10 | J19: -10
G20: 10 | H20: 10 | J20: -10
G21: 10 | H21: 10 | J21: -10
G22: 10 | H22: 10 | J22: -10
G23: 10 | H23: 10 | J23: -10
G24: 10 | H24: 10 | J24: -10
G25: 10 | H25: 10 | J25: -10
G26: 10 | H26: 10 | J26: -10
G27: 10 | H27: 10 | J27: -10
G28: 10 | H28: 10 | J28: -10
G29: 10 | H29: 10 | J29: -10
G30: 10 | H30: 10 | J30: -10
G31: 10 | H31: 10 | J31: -10
G32: 10 | H32: 10 | J32: -10
G33: 10 | H33: 10 | J33: -10
G34: 10 | H34: 10 | J34: -10
G35: 10 | H35: 10 | J35: -10
G36: 10 | H36: 10 | J36: -10
G37: 10 | H37: 10 | J37: -10
G38: 10 | H38: 10 | J38: -10
G39: 10 | H39: 10 | J39: -10
G40: 10 | H40: 10 | J40: -10

Sheet EQUIFUN
A1: CHAMPIONNAT DE FRANCE SPORT ADAPTE EQUITATION
A2: 19 et 20 JUIN 2014 - LES RENES DE LA VIE - SAINT LO
A3: EQUIFUN - DIVISION 3 JEUNES
B6: Nombre de partants : | C6: =COUNTA(B68:B98) -> 6
A7: Dossard | B7: Cavalier | C7: Cheval | D7: Association | E7: Juge 1 | F7: Juge 2 | G7: Pénalités | H7: TOTAL | I7: Temps | J7: Classement
A8: 1 | B8: GRAMONT Florian | C8: TIC | D8: APEI Centre Manche IME La Fresnelière | E8: 92 | F8: 118 | G8: 2 | H8: =E8+F8-G8 -> 208 | I8: 73
A9: 2 | B9: COTENTIN Pierre-Louis | C9: INDIENNE | D9: APEI Centre Manche IME La Fresnelière | E9: 122 | F9: 91 | G9: 2 | H9: 211 | I9: 69
A10: 3 | B10: LEBACHELEY Emilia | C10: POLY | D10: APEI Centre Manche IME La Fresnelière | E10: 84 | F10: 103 | G10: 2 | H10: 185 | I10: 120
A11: 4 | B11: DUFOUR Robert | C11: NOKER | D11: APEI Centre Manche IME La Fresnelière | E11: 110 | F11: 86 | H11: 196 | I11: 106
A12: 5 | B12: FOURNIER Samantha | C12: OPERA | D12: APEI Centre Manche IME La Fresnelière | E12: 88 | F12: 115 | G12: 2 | H12: 201 | I12: 100
A13: 6 | B13: GAILDRAT Félix | C13: PERSO PAL | D13: Le pied à l'étrier | E13: 92 | F13: 74 | H13: 166 | I13: 107
A14: 7 | B14: HARLEY Joyan | C14: PERSO PAL | D14: Le pied à l'étrier | E14: 76 | F14: 100 | G14: 2 | H14: 174 | I14: 120
A15: 8 | B15: HAZI Samy | C15: PERSO PAL | D15: Le pied à l'étrier | E15: 109 | F15: 86 | H15: 195 | I15: 107
A16: 9 | B16: POWER Wayne | C16: PERSO PAL | D16: Le pied à l'étrier | E16: 81 | F16: 106 | H16: 187 | I16: 86
A17: 10 | B17: DIDIER Jérémie | C17: OSIRIS | D17: EYBENS Sport adapté | E17: 75 | F17: 92 | H17: 167 | I17: 150
A18: 11 | B18: ESTEVES Manuel | C18: PERSO TILLEUILS | D18: Centre Equestre des Tilleuls | E18: 109 | F18: 94 | H18: 203 | I18: 78
A19: 12 | B19: DIAWARA Kalilou | C19: PERSO TILLEUILS | D19: Centre Equestre des Tilleuls | E19: 105 | F19: 93 | H19: 198 | I19: 66
A20: 13 | B20: FERRARY Aurore | C20: PERSO TILLEUILS | D20: Centre Equestre des Tilleuls | E20: 95 | F20: 82 | H20: 177 | I20: 128
A21: 14 | B21: BANANI Jad | C21: PERSO TILLEUILS | D21: Centre Equestre des Tilleuls | E21: 76 | F21: 100 | H21: 176 | I21: 129
A22: 15 | B22: PETIT FLEURY Emilie | C22: PERSO TILLEUILS | D22: Centre Equestre des Tilleuls | E22: 72 | F22: 95 | H22: 167 | I22: 156
A23: 16 | B23: BILLERES Jessica | C23: PERSO TILLEUILS | D23: Centre Equestre des Tilleuls | E23: 112 | F23: 80 | H23: 192 | I23: 60
A24: 17 | B24: MONNIER Nicolas | C24: NO NAME | D24: ASAL 39 | E24: 91 | F24: 120 | H24: 211 | I24: 74
A25: 18 | B25: MAHAMDI Nassim | C25: NO NAME | D25: ASAL 39 | E25: 115 | F25: 92 | H25: 207 | I25: 64
A26: 20 | B26: Brisset Lambert | C26: TIC | D26: Les rênes de la vie (SAISMO 21) | E26: 80 | F26: 93 | H26: 173 | I26: 115
A27: 21 | B27: BENADJI Nabil | C27: NENUPHAR | D27: Coppe Atout Sport | E27: 84 | F27: 103 | H27: 187 | I27: 96
A28: 22 | B28: BOSCHE Nicolas | C28: QUETZAL | D28: Coppe Atout Sport | E28: 70 | F28: 90 | G28: 4 | H28: 156 | I28: 177
A29: 23 | B29: BONTE Charlotte | C29: NENUPHAR | D29: Coppe Atout Sport | E29: 81 | F29: 95 | H29: 176 | I29: 123
A30: 24 | B30: DUPORTAIL Emeline | C30: QUETZAL | D30: Coppe Atout Sport | E30: 91 | F30: 71 | G30: 4 | H30: 158 | I30: 134
A31: 25 | B31: DUPORT Sébastien | C31: KERIS | D31: Coppe Atout Sport | E31: 61 | F31: 69 | G31: 12 | H31: 118 | I31: 139
A32: 26 | B32: POUCHELE Ophélie | C32: MULTAN | D32: Coppe Atout Sport | E32: 74 | F32: 92 | G32: 5 | H32: 161 | I32: 110
A33: 27 | B33: STAESSEN Cédric | C33: OSIRIS | D33: Coppe Atout Sport | E33: 95 | F33: 82 | H33: 177 | I33: 127
A34: 28 | B34: CARNEY Amandine | C34: MULTAN | D34: Coppe Atout Sport | E34: 56 | F34: 87 | G34: 6 | H34: 137 | I34: 155
A35: 29 | B35: NOYELLE Guillaume | C35: MULTAN | D35: Coppe Atout Sport | E35: 97 | F35: 75 | G35: 6 | H35: 166 | I35: 133
A36: 30 | B36: VANBLEU Jérémy | C36: NENUPHAR | D36: Coppe Atout Sport | E36: 83 | F36: 98 | H36: 181 | I36: 103
A37: 31 | B37: VIDEAU Appoline | C37: NO NAME | D37: Les rênes de la vie (Les Pieux) | E37: 82 | F37: 104 | H37: 186 | I37: 82
A38: 32 | B38: GARNIER Gwendoline | C38: KERIS | D38: Association Sportive IME de Quimperlé | E38: 104 | F38: 92 | H38: 196 | I38: 90
A39: 33 | B39: RIVALLAIN Irène | C39: KERIS | D39: Association Sportive IME de Quimperlé | E39: 90 | F39: 112 | H39: 202 | I39: 75
A40: 34 | B40: FOLLIOT Sandy | C40: IROINE | D40: APEI Centre Manche SESSAD | E40: 119 | F40: 91 | G40: 2 | H40: 208 | I40: 80
A41: 35 | B41: DUVAL Jérémy | C41: JIMBA | D41: APEI Centre Manche SESSAD | E41: 87 | F41: 114 | G41: 2 | H41: 199 | I41: 84
A42: 36 | B42: MABIRE Léo | C42: JIMBA | D42: APEI Centre Manche SESSAD | E42: 117 | F42: 97 | H42: 214 | I42: 66
A43: 37 | B43: BIREE Nicolas | C43: TIC | D43: APEI Centre Manche SESSAD | E43: 97 | F43: 120 | G43: 2 | H43: 215 | I43: 65
A44: 38 | B44: ROGER Lucas | C44: POLY | D44: APEI Centre Manche SESSAD | E44: 104 | F44: 71 | G44: 2 | H44: 173 | I44: 103
A45: 39 | B45: DUBOURGUAIS Dylan | C45: TIC | D45: APEI Centre Manche SESSAD | E45: 113 | F45: 91 | H45: 204 | I45: 75
A46: 40 | B46: METAIRIE Manon | C46: POLY | D46: APEI Centre Manche IME Maurice Marie | E46: 108 | F46: 75 | G46: 2 | H46: 181 | I46: 145
A47: 41 | B47: DESFONTAINES Kelly | C47: POLY | D47: APEI Centre Manche IME Maurice Marie | E47: 80 | F47: 99 | G47: 2 | H47: 177 | I47: 135
A48: 42 | B48: FLEUNY Louis | C48: OPERA | D48: APEI Centre Manche IME Maurice Marie | E48: 79 | F48: 104 | G48: 2 | H48: 181 | I48: 132
A49: 43 | B49: SUZANNE Rémi | C49: NOKER | D49: APEI Centre Manche IME Maurice Marie | E49: 98 | F49: 80 | H49: 178 | I49: 119
A50: 44 | B50: PLEY Jean-Claude | C50: NOKER | D50: APEI Centre Manche IME Maurice Marie | E50: 78 | F50: 102 | H50: 180 | I50: 85
A51: 45 | B51: BOCHKOVITCH Maud | C51: LOOPING | D51: Tropagalo | E51: 88 | F51: 101 | H51: 189 | I51: 74
A52: 46 | B52: SOLER Mathilde | C52: NOISETTE | D52: Tropagalo | E52: 95 | F52: 67 | G52: 6 | H52: 156 | I52: 143
A53: 47 | B53: OLIVIER Alexandre | C53: OSIRIS | D53: Tropagalo | E53: 86 | F53: 102 | H53: 188 | I53: 88
A54: 48 | B54: NONCHE Nicolas | C54: MULTAN | D54: GISORS SPORT | H54: 0 | J54: NP
A55: 49 | B55: MAYEUR Loïc | C55: JIMY | D55: GISORS SPORT | E55: 118 | F55: 95 | H55: 213 | I55: 65
A56: 50 | B56: STRADY Ryan | C56: OSIRIS | D56: GISORS SPORT | E56: 96 | F56: 121 | H56: 217 | I56: 70
A57: 51 | B57: HORTH Olivier | C57: PIKACHU | D57: GISORS SPORT | E57: 112 | F57: 89 | H57: 201 | I57: 62
A58: 52 | B58: GACHTOURI Shakira | C58: NOISETTE | D58: GISORS SPORT | E58: 109 | F58: 77 | H58: 186 | I58: 61
A59: 53 | B59: VERMANDE Matteo | C59: NOISETTE | D59: GISORS SPORT | E59: 112 | F59: 78 | H59: 190 | I59: 95
A60: 54 | B60: SELBONNE Tymothé | C60: PIKACHU | D60: GISORS SPORT | E60: 82 | F60: 117 | H60: 199 | I60: 60
A61: 55 | B61: BUCAILLE Emmanuella | C61: LOOPING | D61: APEI Centre Manche | E61: 80 | F61: 98 | H61: 178 | I61: 95
A62: 56 | B62: LEGUEURLIER Guillaume | C62: MULTAN | D62: APEI Centre Manche | E62: 68 | F62: 85 | H62: 153 | I62: 101
A63: 57 | B63: AMIOT Emilie | C63: HUGO | D63: APEI Centre Manche | E63: 106 | F63: 89 | H63: 195 | I63: 76
A64: 58 | B64: BIENFAIT Alexandre | C64: LOOPING | D64: Les rênes de la vie (ITEP) | E64: 116 | F64: 97 | H64: 213 | I64: 56
A65: 59 | B65: HUMBERT Antonin | C65: NOISETTE | D65: Les rênes de la vie (ITEP) | E65: 94 | F65: 112 | H65: 206 | I65: 57
A66: 60 | B66: FREMONT Louis | C66: NOISETTE | D66: Les rênes de la vie (ITEP) | E66: 90 | F66: 102 | H66: 192 | I66: 63
A67: 61 | B67: KELLERN Enzo | C67: LOOPING | D67: Les rênes de la vie (ITEP) | H67: 0 | J67: NP
A68: 62 | B68: DEBRIL Sofian | C68: KERIS | D68: Adapt EQUIFUN | E68: 120 | F68: 91 | H68: 211 | I68: 55
A69: 63 | B69: BONTE Tom | C69: JIMY | D69: Adapt EQUIFUN | E69: 115 | F69: 97 | H69: 212 | I69: 51
A70: 64 | B70: SANTERRE Yohann | C70: FLAMENCO | D70: Adapt EQUIFUN | E70: 85 | F70: 101 | H70: 186 | I70: 96
A71: 65 | B71: GALETTI Manon | C71: KERIS | D71: Adapt EQUIFUN | E71: 114 | F71: 98 | H71: 212 | I71: 55
A72: 66 | B72: NEUQUELMAN Laurianne | C72: OSIRIS | D72: Adapt EQUIFUN | E72: 105 | F72: 97 | H72: =E72+F72-G72 -> 202 | I72: 85
A73: 67 | B73: GIVAUDAN Jason | C73: OSIRIS | D73: Adapt EQUIFUN | E73: 85 | F73: 104 | H73: =E73+F73-G73 -> 189 | I73: 82
H74: =E74+F74-G74 -> 0
H75: 0
H76: 0
H77: 0
H78: 0
H79: 0
H80: 0
H81: 0
H82: 0
H83: 0
H84: 0
H85: 0
H86: 0
H87: 0
H88: 0
H89: 0
H90: 0
H91: 0
H92: 0
H93: 0
H94: 0
H95: 0
H96: 0
H97: 0
H98: 0

Sheet ATTELAGE
A1: CHAMPIONNAT DE FRANCE SPORT ADAPTE EQUITATION
A2: 19 et 20 JUIN 2014 - LES RENES DE LA VIE - SAINT LO
A3: ATTELAGE - DIVISION 1 JEUNES
B6: Nombre de partants : | C6: =COUNTA(C8:C40) -> 0 | I6: Tps maxi : | J6: 173
A7: Dossard | B7: Cavalier | C7: Cheval | D7: Association | E7: Pénalités Piste | F7: Pénalités Marathon | G7: Note style cavalier | H7: Total 1ère Manche | I7: Pénalités Piste | J7: Pénalités Marathon | K7: Note style cavalier | L7: Temps réalisé | M7: Pénalités Temps | N7: Total 2ème Manche | O7: TOTAL FINAL | P7: Classement
H8: =G8-F8-E8 -> 0 | M8: =IF(L8>$J$6,(L8-$J$6)*0.5,0) -> 0 | N8: =K8-J8-I8-M8 -> 0 | O8: =H8+N8 -> 0
H9: 0 | M9: 0 | N9: 0 | O9: 0
H10: 0 | M10: 0 | N10: 0 | O10: 0
H11: 0 | M11: 0 | N11: 0 | O11: 0
H12: 0 | M12: 0 | N12: 0 | O12: 0
H13: 0 | M13: 0 | N13: 0 | O13: 0
H14: 0 | M14: 0 | N14: 0 | O14: 0
H15: 0 | M15: 0 | N15: 0 | O15: 0
H16: 0 | M16: 0 | N16: 0 | O16: 0
H17: 0 | M17: 0 | N17: 0 | O17: 0
H18: 0 | M18: 0 | N18: 0 | O18: 0
H19: 0 | M19: 0 | N19: 0 | O19: 0
H20: 0 | M20: 0 | N20: 0 | O20: 0
H21: 0 | M21: 0 | N21: 0 | O21: 0
H22: 0 | M22: 0 | N22: 0 | O22: 0
H23: 0 | M23: 0 | N23: 0 | O23: 0
H24: 0 | M24: 0 | N24: 0 | O24: 0
H25: 0 | M25: 0 | N25: 0 | O25: 0
H26: 0 | M26: 0 | N26: 0 | O26: 0
H27: 0 | M27: 0 | N27: 0 | O27: 0
H28: 0 | M28: 0 | N28: 0 | O28: 0
H29: 0 | M29: 0 | N29: 0 | O29: 0
H30: 0 | M30: 0 | N30: 0 | O30: 0
H31: 0 | M31: 0 | N31: 0 | O31: 0
H32: 0 | M32: 0 | N32: 0 | O32: 0
H33: 0 | M33: 0 | N33: 0 | O33: 0
H34: 0 | M34: 0 | N34: 0 | O34: 0
H35: 0 | M35: 0 | N35: 0 | O35: 0
H36: 0 | M36: 0 | N36: 0 | O36: 0
H37: 0 | M37: 0 | N37: 0 | O37: 0
H38: 0 | M38: 0 | N38: 0 | O38: 0
H39: 0 | M39: 0 | N39: 0 | O39: 0
H40: 0 | M40: 0 | N40: 0 | O40: 0

Sheet COMBINE
A1: CHAMPIONNAT DE FRANCE SPORT ADAPTE EQUITATION
A2: 19 et 20 JUIN 2014 - LES RENES DE LA VIE - SAINT LO
A3: COMBINE - DIVISION 3 JEUNES
B6: Nombre de partants : | C6: =COUNTA(B8:B91) -> 66
A7: Dossard | B7: Cavalier | C7: Cheval | D7: Association | E7: Total Dressage | F7: Total Equifun | G7: TOTAL | H7: Classement
A8: 1 | B8: GRAMONT Florian | C8: TIC | D8: APEI Centre Manche IME La Fresnelière | E8: =IF(A8=0,0,VLOOKUP(A8,Dressage,9)) -> 123.5 | F8: =IF(A8=0,0,VLOOKUP(A8,EQUIFUN,8)) -> 208 | G8: =IF(A8=0,0,SUM(E8:F8)) -> 331.5
A9: 2 | B9: COTENTIN Pierre-Louis | C9: INDIENNE | D9: APEI Centre Manche IME La Fresnelière | E9: 122 | F9: 211 | G9: 333
A10: 3 | B10: LEBACHELEY Emilia | C10: POLY | D10: APEI Centre Manche IME La Fresnelière | E10: 121.5 | F10: 185 | G10: 306.5
A11: 4 | B11: DUFOUR Robert | C11: NOKER | D11: APEI Centre Manche IME La Fresnelière | E11: 123.5 | F11: 196 | G11: 319.5
A12: 5 | B12: FOURNIER Samantha | C12: OPERA | D12: APEI Centre Manche IME La Fresnelière | E12: 133 | F12: 201 | G12: 334
A13: 6 | B13: GAILDRAT Félix | C13: PERSO PAL | D13: Le pied à l'étrier | E13: 112 | F13: 166 | G13: 278
A14: 7 | B14: HARLEY Joyan | C14: PERSO PAL | D14: Le pied à l'étrier | E14: 118 | F14: 174 | G14: 292
A15: 8 | B15: HAZI Samy | C15: PERSO PAL | D15: Le pied à l'étrier | E15: 129.5 | F15: 195 | G15: 324.5
A16: 9 | B16: POWER Wayne | C16: PERSO PAL | D16: Le pied à l'étrier | E16: 112 | F16: 187 | G16: 299
A17: 10 | B17: DIDIER Jérémie | C17: OSIRIS | D17: EYBENS Sport adapté | E17: 84.5 | F17: 167 | G17: 251.5
A18: 11 | B18: ESTEVES Manuel | C18: PERSO TILLEUILS | D18: Centre Equestre des Tilleuls | E18: 115.5 | F18: 203 | G18: 318.5
A19: 12 | B19: DIAWARA Kalilou | C19: PERSO TILLEUILS | D19: Centre Equestre des Tilleuls | E19: 119.5 | F19: 198 | G19: 317.5
A20: 13 | B20: FERRARY Aurore | C20: PERSO TILLEUILS | D20: Centre Equestre des Tilleuls | E20: 89.5 | F20: 177 | G20: 266.5
A21: 14 | B21: BANANI Jad | C21: PERSO TILLEUILS | D21: Centre Equestre des Tilleuls | E21: 113.5 | F21: 176 | G21: 289.5
A22: 15 | B22: PETIT FLEURY Emilie | C22: PERSO TILLEUILS | D22: Centre Equestre des Tilleuls | E22: 87 | F22: 167 | G22: 254
A23: 16 | B23: BILLERES Jessica | C23: PERSO TILLEUILS | D23: Centre Equestre des Tilleuls | E23: 130 | F23: 192 | G23: 322
A24: 17 | B24: MONNIER Nicolas | C24: NO NAME | D24: ASAL 39 | E24: 123 | F24: 211 | G24: 334
A25: 18 | B25: MAHAMDI Nassim | C25: NO NAME | D25: ASAL 39 | E25: 120 | F25: 207 | G25: 327
A26: 20 | B26: Brisset Lambert | C26: TIC | D26: Les rênes de la vie (SAISMO 21) | E26: 112.5 | F26: 173 | G26: 285.5
A27: 21 | B27: BENADJI Nabil | C27: NENUPHAR | D27: Coppe Atout Sport | E27: 120 | F27: 187 | G27: 307
A28: 22 | B28: BOSCHE Nicolas | C28: QUETZAL | D28: Coppe Atout Sport | E28: 94.5 | F28: 156 | G28: 250.5
A29: 23 | B29: BONTE Charlotte | C29: NENUPHAR | D29: Coppe Atout Sport | E29: 114.5 | F29: 176 | G29: 290.5
A30: 24 | B30: DUPORTAIL Emeline | C30: QUETZAL | D30: Coppe Atout Sport | E30: 110.5 | F30: 158 | G30: 268.5
A31: 25 | B31: DUPORT Sébastien | C31: KERIS | D31: Coppe Atout Sport | E31: 76.5 | F31: 118 | G31: 194.5
A32: 26 | B32: POUCHELE Ophélie | C32: MULTAN | D32: Coppe Atout Sport | E32: =IF(A32=0,0,VLOOKUP(A32,Dressage,9)) -> 116 | F32: =IF(A32=0,0,VLOOKUP(A32,EQUIFUN,8)) -> 161 | G32: =IF(A32=0,0,SUM(E32:F32)) -> 277
A33: 27 | B33: STAESSEN Cédric | C33: OSIRIS | D33: Coppe Atout Sport | E33: 122.5 | F33: 177 | G33: 299.5
A34: 28 | B34: CARNEY Amandine | C34: MULTAN | D34: Coppe Atout Sport | E34: 99 | F34: 137 | G34: 236
A35: 29 | B35: NOYELLE Guillaume | C35: MULTAN | D35: Coppe Atout Sport | E35: 114.5 | F35: 166 | G35: 280.5
A36: 30 | B36: VANBLEU Jérémy | C36: NENUPHAR | D36: Coppe Atout Sport | E36: 122 | F36: 181 | G36: 303
A37: 31 | B37: VIDEAU Appoline | C37: NO NAME | D37: Les rênes de la vie (Les Pieux) | E37: 87 | F37: 186 | G37: 273
A38: 32 | B38: GARNIER Gwendoline | C38: KERIS | D38: Association Sportive IME de Quimperlé | E38: 105.5 | F38: 196 | G38: 301.5
A39: 33 | B39: RIVALLAIN Irène | C39: KERIS | D39: Association Sportive IME de Quimperlé | E39: 118 | F39: 202 | G39: 320
A40: 34 | B40: FOLLIOT Sandy | C40: IROINE | D40: APEI Centre Manche SESSAD | E40: 127 | F40: 208 | G40: 335
A41: 35 | B41: DUVAL Jérémy | C41: JIMBA | D41: APEI Centre Manche SESSAD | E41: =IF(A41=0,0,VLOOKUP(A41,Dressage,9)) -> 108.5 | F41: =IF(A41=0,0,VLOOKUP(A41,EQUIFUN,8)) -> 199 | G41: =IF(A41=0,0,SUM(E41:F41)) -> 307.5
A42: 36 | B42: MABIRE Léo | C42: JIMBA | D42: APEI Centre Manche SESSAD | E42: 122 | F42: 214 | G42: 336
A43: 37 | B43: BIREE Nicolas | C43: TIC | D43: APEI Centre Manche SESSAD | E43: 122.5 | F43: 215 | G43: 337.5
A44: 38 | B44: ROGER Lucas | C44: POLY | D44: APEI Centre Manche SESSAD | E44: 121 | F44: 173 | G44: 294
A45: 39 | B45: DUBOURGUAIS Dylan | C45: TIC | D45: APEI Centre Manche SESSAD | E45: 124 | F45: 204 | G45: 328
A46: 40 | B46: METAIRIE Manon | C46: POLY | D46: APEI Centre Manche IME Maurice Marie | E46: 109 | F46: 181 | G46: 290
A47: 41 | B47: DESFONTAINES Kelly | C47: POLY | D47: APEI Centre Manche IME Maurice Marie | E47: 107 | F47: 177 | G47: 284
A48: 42 | B48: FLEUNY Louis | C48: OPERA | D48: APEI Centre Manche IME Maurice Marie | E48: 116 | F48: 181 | G48: 297
A49: 43 | B49: SUZANNE Rémi | C49: NOKER | D49: APEI Centre Manche IME Maurice Marie | E49: 115 | F49: 178 | G49: 293
A50: 44 | B50: PLEY Jean-Claude | C50: NOKER | D50: APEI Centre Manche IME Maurice Marie | E50: 109.5 | F50: 180 | G50: 289.5
A51: 45 | B51: BOCHKOVITCH Maud | C51: LOOPING | D51: Tropagalo | E51: 118.5 | F51: 189 | G51: 307.5
A52: 46 | B52: SOLER Mathilde | C52: NOISETTE | D52: Tropagalo | E52: 113 | F52: 156 | G52: 269
A53: 47 | B53: OLIVIER Alexandre | C53: OSIRIS | D53: Tropagalo | E53: 105 | F53: 188 | G53: 293
A54: 48 | B54: NONCHE Nicolas | C54: MULTAN | D54: GISORS SPORT | E54: 0 | F54: 0 | G54: 0
A55: 49 | B55: MAYEUR Loïc | C55: JIMY | D55: GISORS SPORT | E55: 122 | F55: 213 | G55: 335
A56: 50 | B56: STRADY Ryan | C56: OSIRIS | D56: GISORS SPORT | E56: 122 | F56: 217 | G56: 339
A57: 51 | B57: HORTH Olivier | C57: PIKACHU | D57: GISORS SPORT | E57: 116 | F57: 201 | G57: 317
A58: 52 | B58: GACHTOURI Shakira | C58: NOISETTE | D58: GISORS SPORT | E58: 94 | F58: 186 | G58: 280
A59: 53 | B59: VERMANDE Matteo | C59: NOISETTE | D59: GISORS SPORT | E59: 96 | F59: 190 | G59: 286
A60: 54 | B60: SELBONNE Tymothé | C60: PIKACHU | D60: GISORS SPORT | E60: 122 | F60: 199 | G60: 321
A61: 55 | B61: BUCAILLE Emmanuella | C61: LOOPING | D61: APEI Centre Manche | E61: =IF(A61=0,0,VLOOKUP(A61,Dressage,9)) -> 101 | F61: 178 | G61: =IF(A61=0,0,SUM(E61:F61)) -> 279
A62: 56 | B62: LEGUEURLIER Guillaume | C62: MULTAN | D62: APEI Centre Manche | E62: 79.5 | F62: 153 | G62: 232.5
A63: 57 | B63: AMIOT Emilie | C63: HUGO | D63: APEI Centre Manche | E63: 113.5 | F63: 195 | G63: 308.5
A64: 58 | B64: BIENFAIT Alexandre | C64: LOOPING | D64: Les rênes de la vie (ITEP) | E64: 120.5 | F64: 213 | G64: 333.5
A65: 59 | B65: HUMBERT Antonin | C65: NOISETTE | D65: Les rênes de la vie (ITEP) | E65: 114.5 | F65: 206 | G65: 320.5
A66: 60 | B66: FREMONT Louis | C66: NOISETTE | D66: Les rênes de la vie (ITEP) | E66: 110.5 | F66: 192 | G66: 302.5
A67: 61 | B67: KELLERN Enzo | C67: LOOPING | D67: Les rênes de la vie (ITEP) | E67: 109 | F67: 0 | G67: 109
A68: 62 | B68: DEBRIL Sofian | C68: KERIS | D68: Adapt EQUIFUN | E68: 120.5 | F68: 211 | G68: 331.5
A69: 63 | B69: BONTE Tom | C69: JIMY | D69: Adapt EQUIFUN | E69: 124.5 | F69: 212 | G69: 336.5
A70: 64 | B70: SANTERRE Yohann | C70: FLAMENCO | D70: Adapt EQUIFUN | E70: 117 | F70: 186 | G70: 303
A71: 65 | B71: GALETTI Manon | C71: KERIS | D71: Adapt EQUIFUN | E71: 120.5 | F71: 212 | G71: 332.5
A72: 66 | B72: NEUQUELMAN Laurianne | C72: OSIRIS | D72: Adapt EQUIFUN | E72: 124.5 | F72: =IF(A72=0,0,VLOOKUP(A72,EQUIFUN,8)) -> 202 | G72: 326.5
A73: 67 | B73: GIVAUDAN Jason | C73: OSIRIS | D73: Adapt EQUIFUN | E73: 120 | F73: 189 | G73: 309
E74: 0 | F74: 0 | G74: 0
E75: 0 | F75: 0 | G75: 0
E76: 0 | F76: 0 | G76: 0
E77: 0 | F77: 0 | G77: 0
E78: 0 | F78: 0 | G78: 0
E79: 0 | F79: 0 | G79: 0
E80: 0 | F80: 0 | G80: 0
E81: 0 | F81: 0 | G81: 0
E82: 0 | F82: 0 | G82: 0
E83: 0 | F83: 0 | G83: 0
E84: 0 | F84: 0 | G84: 0
E85: 0 | F85: 0 | G85: 0
E86: 0 | F86: 0 | G86: 0
E87: 0 | F87: 0 | G87: 0
E88: 0 | F88: 0 | G88: 0
E89: 0 | F89: 0 | G89: 0
E90: 0 | F90: 0 | G90: 0
E91: 0 | F91: 0 | G91: 0

Sheet COMBINE FINAL
A1: CHAMPIONNAT DE FRANCE SPORT ADAPTE EQUITATION
A2: 19 et 20 JUIN 2014 - LES RENES DE LA VIE - SAINT LO
A3: COMBINE - DIVISION 3 JEUNES
B6: Nombre de partants : | C6: =COUNTA(B8:B71) -> 64
A7: Dossard | B7: Cavalier | C7: Cheval | D7: Association | E7: Total Dressage | F7: Total Equifun | G7: TOTAL | H7: Classement
A8: 50 | B8: STRADY Ryan | C8: OSIRIS | D8: GISORS SPORT | E8: =IF(A8=0,0,VLOOKUP(A8,Dressage,9)) -> 122 | F8: =IF(A8=0,0,VLOOKUP(A8,EQUIFUN,8)) -> 217 | G8: =IF(A8=0,0,SUM(E8:F8)) -> 339 | H8: 1
A9: 37 | B9: BIREE Nicolas | C9: TIC | D9: APEI Centre Manche SESSAD | E9: 122.5 | F9: 215 | G9: 337.5 | H9: 2
A10: 63 | B10: BONTE Tom | C10: JIMY | D10: Adapt EQUIFUN | E10: 124.5 | F10: 212 | G10: 336.5 | H10: 3
A11: 36 | B11: MABIRE Léo | C11: JIMBA | D11: APEI Centre Manche SESSAD | E11: 122 | F11: 214 | G11: 336 | H11: 4
A12: 34 | B12: FOLLIOT Sandy | C12: IROINE | D12: APEI Centre Manche SESSAD | E12: 127 | F12: 208 | G12: 335 | H12: 5
A13: 49 | B13: MAYEUR Loïc | C13: JIMY | D13: GISORS SPORT | E13: 122 | F13: 213 | G13: 335 | H13: 5
A14: 5 | B14: FOURNIER Samantha | C14: OPERA | D14: APEI Centre Manche IME La Fresnelière | E14: 133 | F14: 201 | G14: 334 | H14: 7
A15: 17 | B15: MONNIER Nicolas | C15: NO NAME | D15: ASAL 39 | E15: 123 | F15: 211 | G15: 334 | H15: 7
A16: 58 | B16: BIENFAIT Alexandre | C16: LOOPING | D16: Les rênes de la vie (ITEP) | E16: 120.5 | F16: 213 | G16: 333.5 | H16: 9
A17: 2 | B17: COTENTIN Pierre-Louis | C17: INDIENNE | D17: APEI Centre Manche IME La Fresnelière | E17: 122 | F17: 211 | G17: 333 | H17: 10
A18: 65 | B18: GALETTI Manon | C18: KERIS | D18: Adapt EQUIFUN | E18: 120.5 | F18: 212 | G18: 332.5 | H18: 11
A19: 1 | B19: GRAMONT Florian | C19: TIC | D19: APEI Centre Manche IME La Fresnelière | E19: 123.5 | F19: 208 | G19: 331.5 | H19: 12
A20: 62 | B20: DEBRIL Sofian | C20: KERIS | D20: Adapt EQUIFUN | E20: 120.5 | F20: 211 | G20: 331.5 | H20: 12
A21: 39 | B21: DUBOURGUAIS Dylan | C21: TIC | D21: APEI Centre Manche SESSAD | E21: 124 | F21: 204 | G21: 328 | H21: 14
A22: 18 | B22: MAHAMDI Nassim | C22: NO NAME | D22: ASAL 39 | E22: 120 | F22: 207 | G22: 327 | H22: 15
A23: 66 | B23: NEUQUELMAN Laurianne | C23: OSIRIS | D23: Adapt EQUIFUN | E23: 124.5 | F23: 202 | G23: 326.5 | H23: 16
A24: 8 | B24: HAZI Samy | C24: PERSO PAL | D24: Le pied à l'étrier | E24: 129.5 | F24: 195 | G24: 324.5 | H24: 17
A25: 16 | B25: BILLERES Jessica | C25: PERSO TILLEUILS | D25: Centre Equestre des Tilleuls | E25: 130 | F25: 192 | G25: 322 | H25: 18
A26: 54 | B26: SELBONNE Tymothé | C26: PIKACHU | D26: GISORS SPORT | E26: 122 | F26: 199 | G26: 321 | H26: 19
A27: 59 | B27: HUMBERT Antonin | C27: NOISETTE | D27: Les rênes de la vie (ITEP) | E27: 114.5 | F27: 206 | G27: 320.5 | H27: 20
A28: 33 | B28: RIVALLAIN Irène | C28: KERIS | D28: Association Sportive IME de Quimperlé | E28: 118 | F28: 202 | G28: 320 | H28: 21
A29: 4 | B29: DUFOUR Robert | C29: NOKER | D29: APEI Centre Manche IME La Fresnelière | E29: 123.5 | F29: 196 | G29: 319.5 | H29: 22
A30: 11 | B30: ESTEVES Manuel | C30: PERSO TILLEUILS | D30: Centre Equestre des Tilleuls | E30: 115.5 | F30: 203 | G30: 318.5 | H30: 23
A31: 12 | B31: DIAWARA Kalilou | C31: PERSO TILLEUILS | D31: Centre Equestre des Tilleuls | E31: 119.5 | F31: 198 | G31: 317.5 | H31: 24
A32: 51 | B32: HORTH Olivier | C32: PIKACHU | D32: GISORS SPORT | E32: 116 | F32: 201 | G32: 317 | H32: 25
A33: 67 | B33: GIVAUDAN Jason | C33: OSIRIS | D33: Adapt EQUIFUN | E33: 120 | F33: 189 | G33: 309 | H33: 26
A34: 57 | B34: AMIOT Emilie | C34: HUGO | D34: APEI Centre Manche | E34: 113.5 | F34: 195 | G34: 308.5 | H34: 27
A35: 35 | B35: DUVAL Jérémy | C35: JIMBA | D35: APEI Centre Manche SESSAD | E35: 108.5 | F35: 199 | G35: 307.5 | H35: 28
A36: 45 | B36: BOCHKOVITCH Maud | C36: LOOPING | D36: Tropagalo | E36: 118.5 | F36: 189 | G36: 307.5 | H36: 28
A37: 21 | B37: BENADJI Nabil | C37: NENUPHAR | D37: Coppe Atout Sport | E37: 120 | F37: 187 | G37: 307 | H37: 30
A38: 3 | B38: LEBACHELEY Emilia | C38: POLY | D38: APEI Centre Manche IME La Fresnelière | E38: 121.5 | F38: 185 | G38: 306.5 | H38: 31
A39: 30 | B39: VANBLEU Jérémy | C39: NENUPHAR | D39: Coppe Atout Sport | E39: 122 | F39: 181 | G39: 303 | H39: 32
A40: 64 | B40: SANTERRE Yohann | C40: FLAMENCO | D40: Adapt EQUIFUN | E40: =IF(A40=0,0,VLOOKUP(A40,Dressage,9)) -> 117 | F40: =IF(A40=0,0,VLOOKUP(A40,EQUIFUN,8)) -> 186 | G40: =IF(A40=0,0,SUM(E40:F40)) -> 303 | H40: 32
A41: 60 | B41: FREMONT Louis | C41: NOISETTE | D41: Les rênes de la vie (ITEP) | E41: 110.5 | F41: 192 | G41: 302.5 | H41: 34
A42: 32 | B42: GARNIER Gwendoline | C42: KERIS | D42: Association Sportive IME de Quimperlé | E42: 105.5 | F42: 196 | G42: 301.5 | H42: 35
A43: 27 | B43: STAESSEN Cédric | C43: OSIRIS | D43: Coppe Atout Sport | E43: 122.5 | F43: 177 | G43: 299.5 | H43: 36
A44: 9 | B44: POWER Wayne | C44: PERSO PAL | D44: Le pied à l'étrier | E44: 112 | F44: 187 | G44: 299 | H44: 37
A45: 42 | B45: FLEUNY Louis | C45: OPERA | D45: APEI Centre Manche IME Maurice Marie | E45: 116 | F45: 181 | G45: 297 | H45: 38
A46: 38 | B46: ROGER Lucas | C46: POLY | D46: APEI Centre Manche SESSAD | E46: 121 | F46: 173 | G46: 294 | H46: 39
A47: 43 | B47: SUZANNE Rémi | C47: NOKER | D47: APEI Centre Manche IME Maurice Marie | E47: 115 | F47: 178 | G47: 293 | H47: 40
A48: 47 | B48: OLIVIER Alexandre | C48: OSIRIS | D48: Tropagalo | E48: 105 | F48: 188 | G48: 293 | H48: 40
A49: 7 | B49: HARLEY Joyan | C49: PERSO PAL | D49: Le pied à l'étrier | E49: 118 | F49: 174 | G49: 292 | H49: 42
A50: 23 | B50: BONTE Charlotte | C50: NENUPHAR | D50: Coppe Atout Sport | E50: 114.5 | F50: 176 | G50: 290.5 | H50: 43
A51: 40 | B51: METAIRIE Manon | C51: POLY | D51: APEI Centre Manche IME Maurice Marie | E51: 109 | F51: 181 | G51: 290 | H51: 44
A52: 14 | B52: BANANI Jad | C52: PERSO TILLEUILS | D52: Centre Equestre des Tilleuls | E52: 113.5 | F52: 176 | G52: 289.5 | H52: 45
A53: 44 | B53: PLEY Jean-Claude | C53: NOKER | D53: APEI Centre Manche IME Maurice Marie | E53: 109.5 | F53: 180 | G53: 289.5 | H53: 46
A54: 53 | B54: VERMANDE Matteo | C54: NOISETTE | D54: GISORS SPORT | E54: 96 | F54: 190 | G54: 286 | H54: 47
A55: 20 | B55: Brisset Lambert | C55: TIC | D55: Les rênes de la vie (SAISMO 21) | E55: 112.5 | F55: 173 | G55: 285.5 | H55: 48
A56: 41 | B56: DESFONTAINES Kelly | C56: POLY | D56: APEI Centre Manche IME Maurice Marie | E56: 107 | F56: 177 | G56: 284 | H56: 49
A57: 29 | B57: NOYELLE Guillaume | C57: MULTAN | D57: Coppe Atout Sport | E57: 114.5 | F57: 166 | G57: 280.5 | H57: 50
A58: 52 | B58: GACHTOURI Shakira | C58: NOISETTE | D58: GISORS SPORT | E58: 94 | F58: 186 | G58: 280 | H58: 51
A59: 55 | B59: BUCAILLE Emmanuella | C59: LOOPING | D59: APEI Centre Manche | E59: 101 | F59: 178 | G59: 279 | H59: 52
A60: 6 | B60: GAILDRAT Félix | C60: PERSO PAL | D60: Le pied à l'étrier | E60: 112 | F60: 166 | G60: 278 | H60: 53
A61: 26 | B61: POUCHELE Ophélie | C61: MULTAN | D61: Coppe Atout Sport | E61: 116 | F61: 161 | G61: 277 | H61: 54
A62: 31 | B62: VIDEAU Appoline | C62: NO NAME | D62: Les rênes de la vie (Les Pieux) | E62: 87 | F62: 186 | G62: 273 | H62: 55
A63: 46 | B63: SOLER Mathilde | C63: NOISETTE | D63: Tropagalo | E63: 113 | F63: 156 | G63: 269 | H63: 56
A64: 24 | B64: DUPORTAIL Emeline | C64: QUETZAL | D64: Coppe Atout Sport | E64: 110.5 | F64: 158 | G64: 268.5 | H64: 57
A65: 13 | B65: FERRARY Aurore | C65: PERSO TILLEUILS | D65: Centre Equestre des Tilleuls | E65: 89.5 | F65: 177 | G65: 266.5 | H65: 58
A66: 15 | B66: PETIT FLEURY Emilie | C66: PERSO TILLEUILS | D66: Centre Equestre des Tilleuls | E66: 87 | F66: 167 | G66: 254 | H66: 59
A67: 10 | B67: DIDIER Jérémie | C67: OSIRIS | D67: EYBENS Sport adapté | E67: 84.5 | F67: 167 | G67: 251.5 | H67: 60
A68: 22 | B68: BOSCHE Nicolas | C68: QUETZAL | D68: Coppe Atout Sport | E68: 94.5 | F68: 156 | G68: 250.5 | H68: 61
A69: 28 | B69: CARNEY Amandine | C69: MULTAN | D69: Coppe Atout Sport | E69: 99 | F69: 137 | G69: 236 | H69: 62
A70: 56 | B70: LEGUEURLIER Guillaume | C70: MULTAN | D70: APEI Centre Manche | E70: 79.5 | F70: 153 | G70: 232.5 | H70: 63
A71: 25 | B71: DUPORT Sébastien | C71: KERIS | D71: Coppe Atout Sport | E71: 76.5 | F71: 118 | G71: 194.5 | H71: 64
